bitfinex/quotes_SOLUSD_20230112
["timestamp","ask_amount","ask_price","bid_price","bid_amount"]
[1673514360837,70.44724,16.137,16.121,20.0]
[1673514361059,27.92724,16.136,16.121,20.0]
[1673514361375,17.96,16.135,16.121,20.0]
[1673514361904,13.09,16.13,16.12,66.53]
[1673514362513,13.09,16.13,16.12,46.53]
[1673514362863,13.09,16.13,16.113,20.0]
[1673514363039,13.09,16.13,16.114,44.18]
[1673514363585,13.09,16.13,16.115,20.0]
[1673514363775,13.09,16.13,16.116,40.72]
[1673514364719,13.12,16.13,16.117,20.0]
[1673514365774,13.12,16.13,16.118,112.6455]
[1673514367151,13.12,16.13,16.118,145.0855]
[1673514367369,0.96,16.129,16.118,112.6455]
[1673514369139,0.96,16.129,16.118,139.0655]
[1673514369972,0.96,16.129,16.118,112.6455]
[1673514370302,20.96,16.129,16.118,112.6455]
[1673514372197,65.7,16.13,16.118,112.6455]
[1673514372413,13.14,16.13,16.118,112.6455]
[1673514372630,13.14,16.13,16.119,138.8365]
[1673514374511,65.63,16.13,16.119,138.8365]
[1673514374724,0.96,16.129,16.119,138.8365]
[1673514374938,20.96,16.129,16.119,138.8365]
[1673514376179,20.96,16.129,16.119,112.3865]
[1673514376728,20.54823743,16.129,16.119,112.3865]
[1673514377243,0.96,16.128,16.119,112.3865]
[1673514378510,65.63,16.13,16.119,112.3865]
[1673514380282,65.63,16.13,16.119,138.7765]
[1673514380602,20.0,16.129,16.119,138.7765]
[1673514380813,1.92,16.128,16.119,138.7765]
[1673514381019,1.92,16.128,16.119,112.3865]
[1673514381875,25.88724,16.128,16.119,112.3865]
[1673514384371,25.88724,16.128,16.116,26.43]
[1673514384705,25.88724,16.128,16.114,26.43]
[1673514384914,6.96724,16.127,16.114,26.43]
[1673514385128,18.92,16.126,16.114,26.43]
[1673514385342,25.88724,16.126,16.114,26.43]
[1673514386273,6.96724,16.126,16.115,20.0]
[1673514386478,6.96724,16.126,16.116,26.43]
[1673514387655,6.96724,16.126,16.117,20.0]
[1673514387964,6.96724,16.126,16.118,26.43]
[1673514390069,6.96724,16.126,16.119,110.6141]
[1673514391641,8.88724,16.126,16.119,110.6141]
[1673514398265,65.63,16.13,16.119,110.6141]
[1673514398788,65.63,16.13,16.12,46.4]
[1673514398980,65.63,16.13,16.12,165.1085]
[1673514399189,65.63,16.13,16.121,20.0]
[1673514401422,13.15,16.13,16.121,20.0]
[1673514404360,13.15,16.13,16.12,165.1085]
[1673514406044,13.15,16.13,16.12,145.1085]
[1673514406987,13.15,16.13,16.121,20.0]
[1673514408960,13.15,16.13,16.12,145.1085]
[1673514409176,1.92,16.129,16.12,118.7085]
[1673514409494,18.92,16.129,16.12,118.7085]
[1673514409921,1.92,16.129,16.12,118.7085]
[1673514410118,13.15,16.13,16.12,118.7085]
[1673514411499,1.92,16.129,16.12,118.7085]
[1673514414445,1.92,16.129,16.12,145.0685]
[1673514415395,13.15,16.13,16.12,145.0685]
[1673514415916,1.92,16.129,16.12,118.7085]
[1673514416228,18.92,16.129,16.12,118.7085]
[1673514419798,1.92,16.129,16.12,118.7085]
[1673514420006,1.92,16.129,16.121,20.0]
[1673514420214,20.11724,16.13,16.12,145.0885]
[1673514421061,20.11724,16.13,16.12,118.7085]
[1673514421270,0.96,16.129,16.12,118.7085]
[1673514421590,18.92,16.129,16.12,118.7085]
[1673514421803,1.92,16.129,16.12,118.7085]
[1673514422019,20.11724,16.13,16.12,118.7085]
[1673514422642,1.92,16.129,16.12,118.7085]
[1673514423295,0.96,16.129,16.12,118.7085]
[1673514424452,0.96,16.129,16.12,145.0485]
[1673514424639,0.96,16.129,16.12,118.7085]
[1673514425900,20.11724,16.13,16.12,118.7085]
[1673514426129,13.15,16.13,16.12,145.0585]
[1673514426340,13.15,16.13,16.121,20.0]
[1673514426652,13.15,16.13,16.12,145.0585]
[1673514429153,41.3391461,16.134,16.123,8.95599465]
[1673514429366,13.2,16.14,16.126,26.34]
[1673514429591,13.2,16.14,16.126,27.3]
[1673514430015,13.2,16.14,16.127,20.96]
[1673514430227,13.2,16.14,16.128,27.3]
[1673514430449,13.2,16.14,16.128,137.6605]
[1673514430653,13.2,16.14,16.129,20.0]
[1673514430959,13.2,16.14,16.13,26.33]
[1673514431175,13.2,16.14,16.131,20.0]
[1673514431362,13.2,16.14,16.132,26.06]
[1673514433150,39.14496728,16.145,16.132,26.06]
[1673514433354,1.92,16.144,16.132,26.06]
[1673514437694,13.1,16.14,16.132,26.06]
[1673514438099,13.1,16.14,16.131,20.0]
[1673514438643,13.1,16.14,16.132,26.04]
[1673514441778,0.96,16.139,16.132,26.04]
[1673514441985,18.92,16.139,16.13,26.09]
[1673514442199,25.88724,16.139,16.129,26.09]
[1673514442421,25.88724,16.139,16.128,136.4505]
[1673514442750,6.96724,16.138,16.128,136.4505]
[1673514442927,1.92,16.137,16.128,136.4505]
[1673514446541,6.96724,16.138,16.129,20.0]
[1673514450531,6.96724,16.138,16.128,110.3605]
[1673514450726,18.92,16.137,16.128,110.3605]
[1673514451057,6.96724,16.136,16.128,110.3605]
[1673514451242,1.92,16.135,16.128,110.3605]
[1673514452316,0.96,16.135,16.128,110.3605]
[1673514453041,0.96,16.134,16.126,26.19]
[1673514453268,0.96,16.133,16.121,26.23]
[1673514453456,13.1,16.13,16.121,26.23]
[1673514454405,0.96,16.129,16.121,26.23]
[1673514455464,0.96,16.128,16.121,26.23]
[1673514457998,0.96,16.127,16.121,26.23]
[1673514458305,0.96,16.127,16.11,128.5311]
[1673514458306,7.92724,16.126,16.116,26.33]
[1673514458520,25.88724,16.126,16.117,300.36976123]
[1673514458705,7.92724,16.126,16.118,20.0]
[1673514459038,7.92724,16.125,16.113,20.0]
[1673514459245,0.96,16.124,16.115,20.0]
[1673514459447,0.96,16.124,16.116,26.44]
[1673514459658,7.92724,16.125,16.116,26.44]
[1673514459862,6.96724,16.125,16.116,26.44]
[1673514463871,6.96724,16.125,16.115,26.44]
[1673514464067,6.96724,16.125,16.116,20.0]
[1673514464279,1.92,16.124,16.116,20.0]
[1673514465145,1.92,16.124,16.115,20.0]
[1673514465338,1.92,16.124,16.116,46.47]
[1673514466934,1.92,16.124,16.116,26.47]
[1673514473446,6.96724,16.125,16.115,20.0]
[1673514473772,1.92,16.124,16.116,26.45]
[1673514474603,6.96724,16.125,16.116,26.45]
[1673514474817,1.92,16.124,16.116,26.45]
[1673514484378,18.92,16.124,16.115,20.0]
[1673514484580,6.96724,16.123,16.115,20.0]
[1673514484797,1.92,16.122,16.115,20.0]
[1673514485003,1.92,16.122,16.114,20.0]
[1673514485004,8.88724,16.122,16.114,20.0]
[1673514485204,8.88724,16.122,16.115,26.47]
[1673514485417,8.88724,16.122,16.116,20.0]
[1673514485633,8.88724,16.122,16.116,40.0]
[1673514486366,8.88724,16.122,16.117,26.5]
[1673514487003,8.88724,16.122,16.116,66.5]
[1673514487313,8.88724,16.122,16.116,46.5]
[1673514487520,8.88724,16.122,16.116,20.0]
[1673514488055,8.88724,16.122,16.116,46.5]
[1673514488930,8.88724,16.122,16.115,40.0]
[1673514489105,20.0,16.129,16.116,26.64]
[1673514489319,65.47,16.13,16.116,26.64]
[1673514489859,13.02,16.13,16.117,1.92]
[1673514490056,13.02,16.13,16.118,30.55]
[1673514490272,13.02,16.13,16.119,117.6606]
[1673514490477,13.02,16.13,16.12,32.33]
[1673514490687,13.02,16.13,16.121,20.0]
[1673514494589,13.02,16.13,16.12,32.33]
[1673514494782,1.92,16.129,16.119,117.6606]
[1673514494998,25.88724,16.129,16.119,117.6606]
[1673514495206,6.96724,16.128,16.119,117.6606]
[1673514495420,1.92,16.127,16.119,117.6606]
[1673514498504,0.96,16.127,16.119,117.6606]
[1673514498699,6.96724,16.128,16.119,117.6606]
[1673514499123,6.96724,16.128,16.119,146.2506]
[1673514501757,6.96724,16.128,16.12,20.0]
[1673514501977,65.44,16.13,16.12,20.0]
[1673514501978,13.09,16.13,16.12,20.0]
[1673514502163,13.09,16.13,16.122,20.0]
[1673514505319,13.09,16.13,16.121,26.4]
[1673514506275,0.96,16.129,16.12,29.79]
[1673514506481,1.92,16.129,16.12,49.79]
[1673514509033,1.92,16.129,16.12,29.79]
[1673514509245,1.92,16.129,16.119,146.4706]
[1673514511030,1.92,16.129,16.119,117.6606]
[1673514511221,53.47724,16.128,16.114,26.41]
[1673514511431,45.88724,16.127,16.114,26.41]
[1673514511655,6.96724,16.126,16.112,26.41]
[1673514511848,1.92,16.125,16.113,20.0]
[1673514512059,1.92,16.125,16.114,26.41]
[1673514513233,1.92,16.125,16.115,20.0]
[1673514513425,1.92,16.125,16.116,26.41]
[1673514513768,1.92,16.125,16.117,20.0]
[1673514514579,6.96724,16.124,16.115,20.0]
[1673514514795,1.92,16.123,16.114,20.0]
[1673514515106,8.88724,16.123,16.115,26.41]
[1673514515316,8.88724,16.123,16.116,20.0]
[1673514516174,8.88724,16.123,16.114,20.0]
[1673514516374,8.88724,16.123,16.115,26.5]
[1673514516578,8.88724,16.123,16.116,20.0]
[1673514517003,6.96724,16.123,16.117,26.5]
[1673514517213,17.0,16.127,16.116,20.0]
[1673514517440,1.92,16.126,16.115,20.0]
[1673514517638,1.92,16.126,16.116,26.5]
[1673514517849,6.96724,16.125,16.116,26.5]
[1673514518059,1.92,16.124,16.117,20.0]
[1673514518683,1.92,16.124,16.115,20.0]
[1673514518894,1.92,16.124,16.116,46.48]
[1673514519113,1.92,16.124,16.117,20.0]
[1673514519966,6.96724,16.125,16.117,20.0]
[1673514521419,1.92,16.124,16.117,20.0]
[1673514523118,1.92,16.124,16.118,26.45]
[1673514523325,6.96724,16.125,16.118,26.45]
[1673514523518,65.61,16.13,16.119,20.0]
[1673514523731,20.10724,16.13,16.12,26.45]
[1673514524798,1.92,16.129,16.12,26.45]
[1673514527936,6.96724,16.128,16.119,114.0375]
[1673514528142,18.92,16.127,16.119,114.0375]
[1673514528366,25.88724,16.127,16.119,114.0375]
[1673514528883,8.88724,16.127,16.119,114.0375]
[1673514529095,7.92724,16.127,16.118,26.39]
[1673514529855,13.14,16.13,16.118,26.39]
[1673514530049,13.14,16.13,16.119,109.96]
[1673514530252,13.14,16.13,16.12,46.39]
[1673514530678,13.14,16.13,16.121,20.0]
[1673514530995,13.14,16.13,16.122,26.3]
[1673514531409,1.92,16.129,16.122,26.3]
[1673514534363,1.92,16.129,16.122,20.0]
[1673514534564,1.92,16.129,16.121,30.46]
[1673514535817,1.92,16.129,16.121,20.0]
[1673514536045,1.92,16.129,16.12,30.99]
[1673514536232,6.96724,16.128,16.119,140.66]
[1673514536449,18.92,16.127,16.119,140.66]
[1673514536658,25.88724,16.127,16.119,140.66]
[1673514538139,6.96724,16.126,16.119,109.96]
[1673514538358,1.92,16.125,16.119,109.96]
[1673514538997,1.92,16.125,16.118,30.62]
[1673514539190,18.92,16.125,16.116,30.81]
[1673514540573,18.92,16.125,16.118,31.44]
[1673514540764,25.88724,16.125,16.116,34.0]
[1673514544458,8.88724,16.125,16.116,34.0]
[1673514549500,7.92724,16.125,16.116,34.0]
[1673514549711,0.96,16.124,16.116,34.0]
[1673514550869,0.96,16.123,16.115,46.54]
[1673514551181,7.92724,16.122,16.11,115.3911]
[1673514551402,12.98,16.12,16.11,115.3911]
[1673514551601,1.92,16.119,16.11,115.3911]
[1673514552451,1.92,16.119,16.111,45.63]
[1673514557696,1.92,16.119,16.111,45.51577587]
[1673514558105,1.92,16.119,16.11,115.3911]
[1673514561273,18.92,16.119,16.11,115.3911]
[1673514562026,25.88724,16.119,16.11,115.3911]
[1673514564006,6.96724,16.119,16.11,115.3911]
[1673514565388,1.92,16.118,16.11,115.3911]
[1673514566201,18.92,16.118,16.11,115.3911]
[1673514566635,1.92,16.118,16.11,115.3911]
[1673514567171,6.96724,16.119,16.11,115.3911]
[1673514567369,12.98,16.12,16.11,115.3911]
[1673514567574,12.98,16.12,16.111,28.07]
[1673514568012,26.96724,16.119,16.11,115.3911]
[1673514569059,18.92,16.118,16.11,115.3911]
[1673514569271,1.92,16.118,16.11,115.3911]
[1673514569587,1.92,16.118,16.111,26.53]
[1673514569769,0.96,16.118,16.111,26.53]
[1673514570053,6.96724,16.119,16.111,26.53]
[1673514570203,6.96724,16.119,16.11,115.3911]
[1673514570527,6.96724,16.119,16.11,119.69123307]
[1673514571272,6.96724,16.119,16.111,26.53]
[1673514572092,12.98,16.12,16.112,20.0]
[1673514572295,12.98,16.12,16.113,26.52]
[1673514572624,12.98,16.12,16.113,30.82013307]
[1673514572838,12.98,16.12,16.113,4.30013307]
[1673514573346,1.92,16.119,16.113,4.30013307]
[1673514573879,6.96724,16.118,16.113,4.30013307]
[1673514574094,18.92,16.117,16.113,4.30013307]
[1673514575372,1.92,16.117,16.113,4.30013307]
[1673514575998,6.96724,16.118,16.113,4.30013307]
[1673514576948,53.50724,16.118,16.113,4.30013307]
[1673514577771,20.0,16.116,16.113,4.30013307]
[1673514577987,1.92,16.115,16.113,4.30013307]
[1673514585059,6.96724,16.114,16.106,20.0]
[1673514585248,18.92,16.113,16.106,20.0]
[1673514586418,1.92,16.113,16.106,20.0]
[1673514586630,1.92,16.113,16.107,26.6]
[1673514586823,1.92,16.113,16.106,20.0]
[1673514587553,1.92,16.113,16.105,26.6]
[1673514589664,1.92,16.113,16.104,20.0]
[1673514589994,1.92,16.113,16.105,26.6]
[1673514590394,0.96,16.113,16.105,26.6]
[1673514590603,6.96724,16.114,16.106,20.0]
[1673514590815,6.96724,16.114,16.107,26.61]
[1673514594185,6.96724,16.114,16.105,30.36]
[1673514594396,6.96724,16.114,16.106,20.0]
[1673514594611,6.96724,16.114,16.107,32.58]
[1673514596935,20.0,16.119,16.107,32.58]
[1673514597244,18.92,16.118,16.107,32.58]
[1673514598613,26.96724,16.119,16.107,32.58]
[1673514599247,6.96724,16.119,16.107,32.58]
[1673514599566,6.96724,16.119,16.107,52.58]
[1673514599774,0.96,16.118,16.107,52.58]
[1673514599989,18.92,16.118,16.107,52.58]
[1673514600719,6.96724,16.119,16.107,32.58]
[1673514600920,6.96724,16.119,16.108,20.0]
[1673514601130,6.96724,16.119,16.109,35.91]
[1673514601979,6.96724,16.119,16.108,35.44]
[1673514602190,18.92,16.118,16.108,35.44]
[1673514602398,25.88724,16.118,16.108,35.44]
[1673514604172,25.88724,16.118,16.107,35.69]
[1673514607757,23.96724,16.118,16.107,35.69]
[1673514608080,6.96724,16.118,16.107,35.69]
[1673514609016,6.96724,16.117,16.107,35.69]
[1673514609227,18.92,16.116,16.106,58.55]
[1673514609442,1.92,16.116,16.106,58.55]
[1673514610812,18.92,16.116,16.106,58.55]
[1673514615439,1.92,16.116,16.106,58.55]
[1673514615746,18.92,16.116,16.106,58.55]
[1673514615962,1.92,16.116,16.106,58.55]
[1673514616164,18.92,16.116,16.106,58.55]
[1673514616894,1.92,16.116,16.106,58.55]
[1673514617099,18.92,16.116,16.106,58.55]
[1673514618889,1.92,16.116,16.106,58.55]
[1673514619620,18.92,16.116,16.106,58.55]
[1673514619826,1.92,16.116,16.106,58.55]
[1673514620477,18.92,16.116,16.106,58.55]
[1673514621529,25.88724,16.116,16.106,58.55]
[1673514621739,6.96724,16.115,16.106,58.55]
[1673514621950,18.92,16.114,16.102,35.13]
[1673514622262,13.1,16.11,16.102,35.13]
[1673514622467,17.96,16.109,16.101,149.7636]
[1673514622680,0.96,16.108,16.101,149.7636]
[1673514622890,0.96,16.107,16.101,149.7636]
[1673514623423,0.96,16.106,16.101,149.7636]
[1673514623833,1.92,16.105,16.101,149.7636]
[1673514624047,20.06724,16.11,16.101,115.1936]
[1673514624368,1.92,16.109,16.101,115.1936]
[1673514624785,1.92,16.109,16.102,35.43]
[1673514625207,65.54,16.12,16.103,20.0]
[1673514625397,20.0,16.118,16.105,20.0]
[1673514625609,6.96724,16.117,16.106,56.48]
[1673514626033,20.0,16.116,16.103,36.73]
[1673514626249,26.96724,16.115,16.103,36.73]
[1673514626453,6.96724,16.114,16.103,36.73]
[1673514626991,18.92,16.113,16.102,35.3]
[1673514627204,6.96724,16.112,16.102,35.3]
[1673514627414,18.92,16.111,16.102,35.3]
[1673514627608,6.96724,16.11,16.102,35.3]
[1673514627821,18.92,16.109,16.102,35.3]
[1673514628572,1.92,16.109,16.102,35.3]
[1673514628887,18.92,16.109,16.102,35.3]
[1673514631623,1.92,16.109,16.102,35.3]
[1673514634335,18.92,16.109,16.102,35.3]
[1673514634648,18.92,16.109,16.101,115.1936]
[1673514634867,18.92,16.109,16.099,38.9]
[1673514634868,6.96724,16.108,16.099,38.9]
[1673514635185,37.96,16.107,16.097,112.4227]
[1673514635380,0.96,16.106,16.094,39.27]
[1673514635591,0.96,16.105,16.095,20.0]
[1673514635912,7.92724,16.104,16.096,37.76]
[1673514636121,17.96,16.103,16.097,20.0]
[1673514636337,0.96,16.103,16.097,20.0]
[1673514636647,7.92724,16.104,16.096,56.78]
[1673514637068,0.96,16.103,16.096,56.78]
[1673514638452,17.96,16.103,16.096,56.78]
[1673514638761,0.96,16.102,16.096,20.0]
[1673514638979,0.96,16.102,16.094,36.07]
[1673514638980,0.96,16.101,16.095,40.0]
[1673514639190,0.96,16.101,16.096,36.44]
[1673514639400,0.96,16.101,16.097,20.0]
[1673514642446,0.96,16.101,16.096,20.0]
[1673514644656,0.96,16.101,16.095,20.0]
[1673514644851,0.96,16.101,16.096,20.0]
[1673514645285,0.96,16.101,16.095,40.0]
[1673514646542,0.96,16.101,16.095,20.0]
[1673514646857,13.1,16.1,16.092,117.168]
[1673514651253,1.92,16.099,16.092,117.168]
[1673514652031,13.1,16.1,16.092,117.168]
[1673514652217,6.96724,16.104,16.093,55.88]
[1673514652528,13.07,16.11,16.093,84.83023035]
[1673514652742,46.55,16.113,16.094,8.95023035]
[1673514653053,6.96724,16.112,16.096,20.0]
[1673514653375,6.96724,16.112,16.097,58.69]
[1673514653780,6.96724,16.112,16.098,21.92]
[1673514653990,1.92,16.111,16.099,40.05]
[1673514654195,1.92,16.111,16.101,20.0]
[1673514654422,1.92,16.111,16.102,39.88]
[1673514661890,18.92,16.111,16.102,39.88]
[1673514662108,18.92,16.111,16.101,37.94]
[1673514665365,6.96724,16.112,16.101,37.94]
[1673514666623,6.96724,16.112,16.1,41.43]
[1673514666820,18.92,16.111,16.1,41.43]
[1673514671893,6.96724,16.112,16.101,20.0]
[1673514672093,46.54,16.118,16.102,65.78]
[1673514672417,6.96724,16.117,16.102,65.78]
[1673514672619,6.96724,16.117,16.103,20.0]
[1673514672830,6.96724,16.117,16.105,20.0]
[1673514673041,6.96724,16.117,16.106,66.03]
[1673514673882,18.92,16.116,16.106,66.03]
[1673514674092,6.96724,16.115,16.106,66.03]
[1673514674302,18.92,16.114,16.106,66.03]
[1673514674509,18.92,16.114,16.106,20.0]
[1673514674718,18.92,16.114,16.104,40.0]
[1673514674931,18.92,16.114,16.105,44.38]
[1673514675258,18.92,16.114,16.106,20.0]
[1673514676407,1.92,16.114,16.106,20.0]
[1673514676625,1.92,16.114,16.099,46.5052294]
[1673514676626,18.92,16.114,16.099,46.5052294]
[1673514676810,18.92,16.114,16.093,20.0]
[1673514676811,13.04,16.11,16.096,20.0]
[1673514677025,7.92724,16.109,16.097,46.6]
[1673514677236,13.04,16.11,16.097,46.6]
[1673514677462,13.04,16.11,16.098,20.0]
[1673514677673,13.04,16.11,16.099,45.38]
[1673514677890,18.92,16.109,16.099,45.38]
[1673514680619,6.96724,16.108,16.096,45.1]
[1673514680936,18.92,16.107,16.097,20.0]
[1673514681139,6.96724,16.106,16.097,20.0]
[1673514681471,18.92,16.105,16.096,20.0]
[1673514681782,6.96724,16.104,16.096,20.0]
[1673514681997,18.92,16.103,16.096,20.0]
[1673514682606,18.92,16.103,16.093,43.16]
[1673514682935,20.0,16.099,16.088,43.1]
[1673514683147,20.0,16.099,16.087,42.28]
[1673514683148,7.92724,16.098,16.087,42.28]
[1673514683357,0.96,16.097,16.087,42.28]
[1673514683564,0.96,16.096,16.086,42.28]
[1673514683974,0.96,16.095,16.086,42.28]
[1673514684185,0.96,16.096,16.086,42.28]
[1673514684397,6.96724,16.097,16.086,42.28]
[1673514684947,6.96724,16.097,16.087,20.0]
[1673514687348,6.96724,16.097,16.088,38.85]
[1673514687559,13.1,16.1,16.087,58.85]
[1673514687769,1.92,16.099,16.087,58.85]
[1673514695540,1.92,16.099,16.087,38.85]
[1673514695754,6.96724,16.098,16.085,118.0196]
[1673514695973,18.92,16.097,16.086,46.87]
[1673514696186,6.96724,16.096,16.086,46.87]
[1673514696395,18.92,16.095,16.086,46.87]
[1673514696597,25.88724,16.095,16.086,46.87]
[1673514696804,6.96724,16.095,16.087,20.0]
[1673514697018,46.59,16.099,16.088,26.87]
[1673514697232,18.92,16.098,16.088,26.87]
[1673514698709,1.92,16.098,16.088,26.87]
[1673514698901,1.92,16.098,16.089,20.0]
[1673514699113,1.92,16.098,16.09,26.9]
[1673514702486,1.92,16.098,16.088,26.86]
[1673514705125,18.92,16.098,16.086,47.22]
[1673514705317,6.96724,16.097,16.086,20.0]
[1673514705528,18.92,16.096,16.086,20.0]
[1673514705738,25.88724,16.096,16.086,20.0]
[1673514706912,25.88724,16.096,16.087,26.87]
[1673514707424,25.88724,16.096,16.086,20.0]
[1673514707636,6.96724,16.095,16.086,20.0]
[1673514707845,1.92,16.094,16.086,20.0]
[1673514708057,1.92,16.094,16.087,30.75]
[1673514708266,1.92,16.094,16.087,20.0]
[1673514708490,1.92,16.094,16.087,40.0]
[1673514708686,1.92,16.094,16.087,20.0]
[1673514709313,1.92,16.094,16.086,30.24]
[1673514709542,1.92,16.094,16.087,20.0]
[1673514710586,6.96724,16.095,16.087,20.0]
[1673514710792,6.96724,16.095,16.088,20.0]
[1673514711008,13.1,16.1,16.089,31.81]
[1673514711426,13.1,16.1,16.09,20.0]
[1673514711740,6.96724,16.099,16.091,32.36]
[1673514711950,6.96724,16.099,16.088,20.0]
[1673514712284,18.92,16.098,16.087,20.0]
[1673514712594,6.96724,16.097,16.087,20.0]
[1673514712803,18.92,16.096,16.087,20.0]
[1673514712999,25.88724,16.096,16.087,20.0]
[1673514713638,25.88724,16.096,16.088,33.36]
[1673514714680,6.96724,16.096,16.088,33.36]
[1673514714891,13.1,16.1,16.088,33.36]
[1673514715210,18.92,16.099,16.088,33.36]
[1673514715423,18.92,16.099,16.089,20.0]
[1673514715635,18.92,16.099,16.09,35.53]
[1673514717428,6.96724,16.1,16.09,35.53]
[1673514717619,82.17,16.113,16.09,48.63]
[1673514717620,46.57,16.107,16.09,48.63]
[1673514717829,6.96724,16.105,16.091,21.92]
[1673514718039,6.96724,16.105,16.092,37.37]
[1673514718261,59.63,16.11,16.093,40.96]
[1673514718469,6.96724,16.109,16.094,37.86]
[1673514718681,53.52724,16.109,16.095,20.0]
[1673514718897,18.92,16.108,16.096,38.88]
[1673514719214,26.96724,16.107,16.097,20.0]
[1673514719410,25.88724,16.106,16.097,20.0]
[1673514719744,6.96724,16.105,16.095,20.0]
[1673514719944,18.92,16.104,16.096,39.36]
[1673514720157,18.92,16.104,16.097,20.0]
[1673514720683,18.92,16.104,16.095,20.0]
[1673514720684,18.92,16.104,16.096,60.5]
[1673514721087,6.96724,16.105,16.096,60.5]
[1673514721526,6.96724,16.105,16.096,20.0]
[1673514721729,6.96724,16.105,16.095,40.0]
[1673514721942,6.96724,16.105,16.096,41.0]
[1673514722258,6.96724,16.105,16.097,20.0]
[1673514722455,18.92,16.104,16.097,20.0]
[1673514722667,25.88724,16.104,16.095,20.0]
[1673514723422,8.88724,16.104,16.095,20.0]
[1673514723634,8.88724,16.104,16.096,41.17]
[1673514723822,8.88724,16.104,16.097,20.0]
[1673514724576,8.88724,16.104,16.096,62.2]
[1673514724976,7.92724,16.104,16.096,62.2]
[1673514725191,6.96724,16.104,16.096,62.2]
[1673514725398,20.0,16.109,16.096,62.2]
[1673514725628,6.96724,16.108,16.096,62.2]
[1673514726880,18.92,16.107,16.096,62.2]
[1673514727620,1.92,16.107,16.096,62.2]
[1673514728151,18.92,16.107,16.096,62.2]
[1673514735311,1.92,16.107,16.096,62.2]
[1673514737409,6.99063,16.106,16.096,20.0]
[1673514737725,17.96,16.105,16.093,35.94]
[1673514737932,13.1,16.1,16.092,115.7453]
[1673514738145,1.92,16.099,16.092,115.7453]
[1673514739288,1.92,16.099,16.09,114.1756]
[1673514739489,25.91063,16.099,16.09,114.1756]
[1673514740980,8.91063,16.099,16.086,28.66]
[1673514741186,6.99063,16.099,16.088,20.0]